Workbook

Sheet SPECIFICATION_UNPRICED
A1: SPECIFICATION - UNPRICED
A2: FRANCES BAARD DISTRICT OFFICE - PEME
A3: FENCING
A4: SUPPLY AND INSTALL A HIGH SECURITY FENCE
A6: SPECIFICATION | B6: UNIT | C6: QTY | D6: Unit Price | E6: Amount
A9: EARTHWORKS
A10: DEMOLITIONS AND SITE CLEARANCE
A11: Carefully cut and remove the existing 2000mm high steel palisade devils fork fence with concrete bases of posts including the 400mm (h) flat wrap with straining wires from all the posts. Also remove the existing one pedestrian and three sliding motor gates. Carefully store panels and posts with gates on site for the re-use by the Department. | B11: m | C11: 1400 | D11: R65 | E11: =C11*D11 -> R91,000
A12: PREPARATION AND CLEANING OF SITE ON COMPLETION
A13: The line of the fence shall be thoroughly cleaned for a distance of 1 meter on either side of the centre line of the fence; any irregularities in the ground must be removed in order that the fence may follow the general contour of the ground. Clearing shall include the removal of all trees not exceeding 200mm in girth (pruning and shaping of trees), shrubs and rubble, debris, grass, bush which may interfere with the erection of the fence. Slumps within the cleared area must be removed. The bottom of the fence shall be an even distance of 20mm above the ground level. All cleared rubble shall be dumped in municipal refuse dumps. | B13: m² | C13: 2800 | D13: R25 | E13: =C13*D13 -> R70,000
A15: Take up and remove existing precast 500 x 500 x 0.5mm thick concrete slabs of walkways to stockpile for re-use. | B15: m² | C15: 100 | D15: R45 | E15: =C15*D15 -> R4,500
A16: Digging up and removing of tree roots under walkway which will be directed on site. Level and compact ground surfaces to receive existing concrete slabs. | B16: m² | C16: 100 | D16: R100 | E16: R10,000
A17: EXCAVATIONS
A18: Excavations and trenching for cables and waterpipes must be at least 500mm deep and 300mm wide. Trenching must be properly dug to ensure proper execution of the work. The trench must be perfectly straight in line and run at right angles from point to point. | B18: m³ | C18: 150 | D18: R360 | E18: =C18*D18 -> R54,000
A19: Excavate 400mm x 400mm x 600mm deep holes in ordinary earth for posts. | B19: m³ | C19: 45 | D19: R360 | E19: =C19*D19 -> R16,200
A20: Excavate 300mm wide x 300mm deep x 19m long in ordinary earth trench for three sliding gate tracks. | B20: m³ | C20: 2 | D20: R360 | E20: R720
A21: EXTRA OVER EXCAVATIONS
A22: Soft Rock | B22: m³ | C22: 30 | D22: R400 | E22: =C22*D22 -> R12,000
A23: Hard Rock | B23: m³ | C23: 50 | D23: R500 | E23: R25,000
A24: FILLING
A25: Place 100mm river sand blinding; laying 50mm and 32mm high density polyethylene pipes (class 6) measured elsewhere. | B25: m³ | C25: 30 | D25: R370 | E25: =C25*D25 -> R11,100
A26: Place 100mm river sand blanket; laying 50mm and 20mm high density polyethylene pipes (class 6) measured elsewhere. | B26: m³ | C26: 30 | D26: R370 | E26: R11,100
A27: Backfill trench and compact to a density of not less than 90 per cent Modified AASHTO.The backfill around cables and waterpipes shall not contain any sharp objects. | B27: m³ | C27: 135 | D27: R150 | E27: R20,250
A28: Removal of rubble small loads | B28: m³ | C28: 10 | D28: 0 | E28: =C28*D28 -> 0
A29: SUB TOTAL | E29: R147,950
A31: CONCRETE WORK
A32: Cast new 450mm wide x 8000mm lenght x 200mm deep concrete foundation strip footing in Class C- concrete (4:3:1) with a breaking strength of 25MPA. The foundation must be finished off to the height of ±100mm underneath the natural ground level. The foundation must be cast neatly in straight lines. | B32: m³ | C32: 1 | D32: R2,500 | E32: =C32*D32 -> R2,500
A33: Cast a new 3000mm wide x 3000mm lenght x 150mm thick concrete floor slab with a minimum compression strength of 25 MPa /19mm stone within 28 days. | B33: m³ | C33: 2 | D33: R2,500 | E33: R5,000
A34: Cast concrete in base for intermediate post, size 400 x 400 x 600mm, with chamfered top surface projecting 20mm above surrounding ground level, including any necessary formwork, etc. with a minimum compression strength of 25 MPa /19mm stone within 28 days. | B34: m³ | C34: 45 | D34: R2,500 | E34: R112,500
A35: Cast concrete in plinth under gate, size 300mm wide x 300mm deep x 19m long, with wood floated top surface at ground level, including any necessary formwork, etc. with a minimum compression strength of 30 MPa /19mm stone within 28 days. | B35: m³ | C35: 2 | D35: R2,500 | E35: R5,000
A36: Cast in panels, a new 100mm thick concrete surface bed in class c-concrete with a concrete strength not less than 25Mpa.Finish off concrete surface with a wood float and steel trowel to a true, smooth and even surface, ready for the laying of vinyl floor tiles elsewhere specified. | B36: m³ | C36: 13 | D36: R2,500 | E36: R32,500
A37: SUB TOTAL | E37: R5,000
A39: MASONRY
A40: BRICKWORK
A41: SUPERSTRUCTURE:CONSTRUCTION OF A WATER PURIFICATION/PUMP ROOM
A42: Supply and build a new valve chamber with a 450mm x 450mm light duty single seal manhole cover with frame. Build a valve chamber of six course half brick walls in stretcher bond with NFX bricks in Class11 mortar, which should be level with the natural ground surfaces. Location of new chamber will be directed on site. | B42: no. | C42: 7 | D42: R3,500 | E42: =C42*D42 -> R24,500
A43: CONSTRUCT NEW TOILET CUBICLES AND PARTITION WALL FOR URINALS
A44: Supply and build a new valve chamber with a 450mm x 600mm light duty single seal manhole cover with frame. Build a valve chamber of six course half brick walls in stretcher bond with NFX bricks in Class11 mortar, which should be level with the natural ground surfaces. Location of new chamber will be directed on site. | B44: no. | C44: 1 | D44: R4,000 | E44: =C44*D44 -> R4,000
A45: PAVING
A46: SUPPLY AND LAY NEW PAVING
A47: LEVELING
A48: Level and prepare the paving areas. Note: The contractor is responsible for all leveling of paving area. The ground shall be graded with a fall . | B48: m² | C48: 60 | D48: R50 | E48: =C48*D48 -> R3,000
A49: NEW APPROVED FILLING
A50: Filling underneath new paving shall be clean, approved earth, as per departmental standards and as approved by the representative agent. | B50: m² | C50: 60 | D50: R60 | E50: =C50*D50 -> R3,600
A51: COMPACTION
A52: The paving area must be compacted with a mechanical compactor to the approval of the departmental representative. | B52: m² | C52: 60 | D52: R50 | E52: =C52*D52 -> R3,000
A53: SOIL POISONING/TERMITES/WEED KILLER
A54: Spray with SABS approved weed killer on the compacted earth at a rate of 4g/m². A certificate of compliance of a registered pest controller must be submitted. | B54: m² | C54: 60 | D54: R35 | E54: =C54*D54 -> R2,100
A55: DAMP PROOF COURSE
A56: Provide and place a course of PVC sheeting- 250 micron over the compacted area. Note: all joints of sheeting are to overlap at least 200mm and be sealed with approved sealer to match PVC sheeting. No damaged sheeting will be accepted. | B56: m² | C56: 60 | D56: R35 | E56: =C56*D56 -> R2,100
A57: PROVIDE AND LAY NEW 60MM THICK CEMENT PAVERS
A58: Supply and place a 25mm thick clean river sand screed over the paving area and compact Provide and lay new 60mm thick SABS approved standard interlock gray paving blocks. The paving must be laid, compacted with the gap and joint filling neatly done in 3:1 cement mortar. Lines shall be set up at right angles to control alignment of the paving bricks. Joint width shall not exceed 5mm. Whole bricks shall be laid first. Closure blocks must have a dimension of least 30mm of size or cut or splits from whole blocks shall be fitted into gaps around the perimeter and around installations, such as manholes. Note: all exposed edging shall be finished with a brick on edge, securely laid in a cement mortar of 3:1 which is 300mm wide and 50mm thick. River sand shall be broomed into all the joints until they are full and sufficient passes shall be made to settle the joint filling. On completion all excess sand shall be broomed off and disposed of. Ponding and damaged caused by and during compaction shall be made good by the contractor at his or her own expense. | B58: m² | C58: 60 | D58: R500 | E58: =C58*D58 -> R30,000
A59: SUB TOTAL | E59: R72,300
A61: WATERPROOFING
A62: One layer of 375 micron black polyethylene embossed damp proof course in walls | B62: m | C62: 30 | D62: R40 | E62: =C62*D62 -> R1,200
A63: Lay new damp proof sheeting (as specified in clause 7.2 of s.m.m.) in an approved manner, prior to the casting of new concrete surface bed. | B63: m² | C63: 168 | D63: R40 | E63: R6,720
A64: SUB TOTAL | E64: =SUM(E62:E63) -> R7,920
A66: ROOF COVERING
A67: REPAIR ROOF LEAKAGES
A68: Thoroughly examine roof surfaces of all school buildings. The contractor is to pay special attention internally where watermarks are evident on ceilings to locate leaks. All loose, missing or worn out roof screws are to be replaced, plug screw holes using an approved wood glue and fit new and longer roof screws including new washers and under cup washers. Holes in sheets are to be soldered. Similarly examine all ridging and make good where defective sections are located. Areas of roof that have been previously sealed must be carefully re-examined and all defective membranes should be removed and repaired as mentioned above. In addition to this, the contractor is to provide the Department with a written guarantee equivalent to one year starting from the date of final delivery. | B68: m² | C68: 3418 | D68: R30 | E68: =C68*D68 -> R102,540
A69: SUPPLY AND FIT NEW IBR ROOF SHEETS
A70: Supply and install 0.58 mm thick standard IBR galvanized roof sheets to newly built covered walkway: Width : 2m and Length: 30m and replace missing roof sheets to existing covered walkway. IBR sheets must be laid with one corrugation side lap with the narrow flute uppermost and shall be fixed through the crest of alternate flutes to purlins. All fixing holes should be drilled 1.5mm larger than the diameter of the screw, using 65mm Top speed or Tek screws into purlins and be spaced at approximately 350mm centres horizontally. NOTE: Any sheets which are attacked by white rust before being fixed in position, are to be immediately removed from the site. | B70: m² | C70: 50 | D70: R300 | E70: =C70*D70 -> R15,000
A71: SUB TOTAL | E71: R117,540
A73: CARPENTRY AND JOINERY
A74: REPAIRS TO TIMBER ROOF TRUSS CONSTRUCTION
A75: Where components of the wooden roof construction are replaced they must be taken out and removed and replaced in “Merchantable Grade” South African Pine complying with the requirements of SABS Specifications for Stress-Graded Softwood General Structural Timber, S.A.B.S.563.During the replacement of components of the roof construction the rest of the roof construction must be supported. Where roofs have sagged they must be realigned including the supply of additional bearers, struts, etc. All roof timbers are to be treated in accordance with the requirements for Class C preservatives as laid down in the SABS Code of Practice for Preservative Treatment of Timber, S.A.B.S.05. Roof trusses are to be properly constructed, lapped at all junctions and spiked together with ends of nails crimped over and each intersection bolted with 10mm diameter bolts. Feet of trusses are to be secured with 1,6mm galvanized mild steel straps 38mm wide and 900mm girth wrapped around roof timbers and spiked to plates. Purlins must be in long lengths continuous over at least three rafters, set on edge, securely spiked to rafters and each intersection of purlin and rafter must be tied together with and including 4mm diameter galvanized wire tie 750mm long wrapped around rafter and purlin, tightly drawn up and twisted.
A76: Replace existing defective 50mm x 76mm purlins with new including eave purlins of existing roof trusses at all school buildings. | B76: m | C76: 890 | D76: R80 | E76: R71,200
A77: TIMBER DOORS, FRAMES, ETC.
A78: Plane entrance timber door which should open and close freely at classroom no. 4 and 5. | B78: no. | C78: 2 | D78: R65 | E78: =C78*D78 -> R130
A79: Repair damaged entrance timber door, cut out damaged wood of door lock and replace with new. Leave door perfectly operational, open and close freely. Location: Classroom no. 3 and store room adjacent educator's toilet | B79: no. | C79: 2 | D79: R250 | E79: R500
A80: Repair damaged timber door frame, cut out damaged wood of striker plate area and replace with new. Leave door perfectly operational, open and close freely. Location: Feeding Scheme Kitchen; Classroom no. 2, store room adjacent to educator's toilet, classroom no. 8 , 9, 10, 11 and 12. | B80: no. | C80: 8 | D80: R250 | E80: R2,000
A81: Break up and remove wooden toilet cubicle partitions and cart away from site. Location: Girl's Toilets for Grade 1,2,3,4,5 and 6. | B81: m² | C81: 40 | D81: R65 | E81: R2,600
A82: Remove wall mounted timber benches - 8m and coat hook - 2m at boys toilets and store on site. | B82: m | C82: 10 | D82: R35 | E82: R350
A83: Supply and hang on new two mild steel hinged using 40mm mild steel wood screws, new 800 x 2000mm Semi-Solid Sapele Veneered doors at boys toilet cubicles. Neatly hung with a 3mm gap all round. Doors are to open and close freely without any obstruction and should not be hinge bound in any way. | B83: no. | C83: 8 | D83: R1,500 | E83: R12,000
A84: Replace damaged entrance timber doors with a new single leaf meranti hardwood F.L and B open back door including weatherboard, hung on new hinges using new screws of a suitable length. New door are to be fitted, with an even gap of 2mm around the outside of door. Supply and fit new hardwood door specified and leave door to open and close freely without being hinge bound on completion.
A85: 44 x 800 x 2015mm meranti timber door - Location: Gents and ladies educator toilets, storeroom no. 17 | B85: no. | C85: 2 | D85: R3,500 | E85: =C85*D85 -> R7,000
A86: 44 x 800 x 2020mm meranti timber door - Location: Girls ablution block | B86: no. | C86: 1 | D86: R3,500 | E86: R3,500
A87: 44 x 800 x 2050mm meranti timber door - Location: Boys ablution block | B87: no. | C87: 1 | D87: R3,500 | E87: R3,500
A88: 44 x 880 x 2100mm meranti timber door - Location: Music room no. 32 | B88: no. | C88: 1 | D88: R3,500 | E88: R3,500
A89: 44 x 900 x 2020mm meranti timber door - Location: Classroom no. 30,9,10,11 and 12. | B89: no. | C89: 1 | D89: R3,500 | E89: R3,500
A90: 44 x 905 x 2010mm meranti timber door - Location: Classroom no. 29,9,10,11 and 12. | B90: no. | C90: 1 | D90: R3,500 | E90: R3,500
A91: 44 x 900 x 2100mm meranti timber door - Location: Classroom no. 24,25,26,20,18. | B91: no. | C91: 1 | D91: R3,500 | E91: R3,500
A92: 44 x 770 x 2150mm meranti timber double rebate door - Location: Classroom no. 27 , main entrance of room 12 and hall. | B92: no. | C92: 7 | D92: R7,000 | E92: R49,000
A93: Supply and install in approved manner new 75mm meranti skirtings and 32mm quadrants complete in classrooms which will be directed on site. | B93: m | C93: 360 | D93: R65 | E93: R23,400
A94: Replace defective 32mm meranti quadrants with new at Library. | B94: m | C94: 54 | D94: R35 | E94: R1,890
A96: PINNING BOARDS, WRITING BOARDS, PROJECTION SCREENS, ETC - "VITREX" OR SIMILAR APPROVED
A97: Supply and install a screen pull down 2440 x 2440mm at classroom no. 24. | B97: no. | C97: 1 | D97: R7,500 | E97: =C97*D97 -> R7,500
A98: Supply and install a ceiling mount bracket projector 430-650mm at classroom no.24. | B98: no. | C98: 1 | D98: R900 | E98: =C98*D98 -> R900
A99: Supply and fit to brickwork a new SABS approved 2000 x 1200mm Carpet pinning board surface which will be directed on site. | B99: no. | C99: 2 | D99: R1,800 | E99: =C99*D99 -> R3,600
A100: SUB TOTAL | E100: R195,600
A102: CEILINGS, PARTITIONS AND ACCESS FLOORING
A103: NAILED UP CEILING BOARDS
A104: Take down damaged ceiling boards compleet including cornice and coverstrips which will be directed on site and cart away from site. | B104: m² | C104: 2422 | D104: R45 | E104: =C104*D104 -> R108,990
A105: Supply and install new 6.4mm thick "Gypsum" plaster board, install with longer lenghts to suit room, configurations with pre-painted "H" profile cover strips including 75mm cove cornice and fixed at right angles to timber brandering with all necessary accesories to strict manufacturer's specifications. Location: As mentioned above. | B105: m² | C105: 2422 | D105: R150 | E105: R363,300
A106: Supply and install new 6.4mm thick "Gypsum" plaster board with 38x38mm brandering, install with longer lenghts to suit room, configurations with pre-painted "H" profile cover strips including 75mm cove cornice and fixed at right angles to timber brandering with all necessary accesories to strict manufacturer's specifications. Location: As mentioned above. New water pump room | B106: m² | C106: 4 | D106: R160 | E106: R640
A107: SUB TOTAL | E107: R472,290
A109: FLOOR COVERINGS, WALL LININGS, ETC.
A110: SUPPLY AND LAY NEW VINYL FLOOR TILES
A111: Remove defective vinyl floor tiles which will be directed on site and cart away from site. | B111: m² | C111: 860 | D111: R45 | E111: =C111*D111 -> R38,700
A112: Remove defective fitted carpeting and cart away from site. Location: Staffroom | B112: m² | C112: 48 | D112: R15 | E112: R720
A113: Sand or level any imperfections on concrete subfloor. Filling in dips or scars with a self-leveling compound, patching concrete, or thinset mortar or sanding down bumps in the concrete. Use your level to check for subfloor imperfections. Supply and lay flexible vinyl (PVC) floor tiles 300x300x2.5mm thick, shall comply with the requirements of SABS 786. The flooring shall be of marbled pattern and of approved colour and of thickness specified. Vinyl tiles shall be laid in strict accordance with the manufacturer’s instructions on a perfectly dry and clean screeded surface using an adhesive supplied or recommended by the manufacturer of flooring material and rolled with a suitable roller to ensure complete adhesion of the material. The flooring shall be cut where required and neatly fitted against floors, thresholds, etc. Apply two sealer coats and one coat of polish. | B113: m² | C113: 860 | D113: R300 | E113: R258,000
A115: SUPPLY AND FIT A RUBBER NON-SLIP FLOOR TAPE
A116: Supply and fit 500mm (L) x 100mm (W) self-adhesive dimpled rubber black non-slip tape to floor and concrete ramp for safe social distance spacing of 1500mm apart at the reception office of office block T, which will be directed on site. | B116: m | C116: 5 | D116: 0 | E116: =C116*D116 -> 0
A117: SUB TOTAL | E117: R297,420
A119: IRONMONGAREY
A121: LOCKS AND FURNITURE
A122: Replace timber door lock with a new SABS approved 3 lever mortice door lock, supplied complete with C.P furniture and two keys per lock. Lock are to be similar or equal to that supplied by “Solid or Union”. Location: Classroom no.30; 24;25;26;storeroom no.17;sportsroom no.14; Music classroom no. 32 and main entrance doors at boys and girls toilets. | B122: no | C122: 9 | D122: R850 | E122: =C122*D122 -> R7,650
A123: Replace damaged rebate coversion set door lock of double rebated timber doors with new chrome plated SABS approved locks. Locks are to be similar or equal to that supplied by “Solid or Union. Location: Double timbers at room 12; classroom no.27 and at the hall. | B123: no | C123: 7 | D123: R1,200 | E123: R8,400
A124: Supply and install chrome plated indicator locks for toilet cubicle doors at boys and girls toilets. | B124: no | C124: 14 | D124: R550 | E124: R7,700
A125: Supply and fit two 50mm galvanised barrel bolts per door,bolted though door with the bolt ends hammered to prevent the nuts to be removed. | B125: no | C125: 14 | D125: R350 | E125: R4,900
A126: Supply and install 50mm Brass padlock with 28mm standard hardened steel shackle similar to “Union” or “Yale”. | B126: no | C126: 24 | D126: R400 | E126: R9,600
A127: Where missing supply and fit new yellow metal window spring catches. Fit catches to window frames with screw provided to ensure that all new catches are fully operational on completion. Location: Classroom no.20 (4) ; class no.18 (6) ; class no. 25 (4) ; class no. 26 (3) ; class no. 27 (5) | B127: no | C127: 22 | D127: R400 | E127: R8,800
A128: To tamper proof door lock , supply and fit a 9mm (W) x 40mm (L) x 3mm thick mild steel plates, flush to both sides of existing timber door, fastened with four black galvanised M8x 50mm long cup square bolts and nuts.Location: Storeroom no. 34 , classroom no. 18,20,24,,25 and 26 | B128: no | C128: 6 | D128: R500 | E128: R3,000
A129: Provide and fit a new approved chromium-plated toilet paper holder, fixed to wall with 32mm chromium plated round headed screws or similar approved, to plugs in wall at boys and girl’s toilets. | B129: no | C129: 14 | D129: R350 | E129: R4,900
A130: Supply and fit where missing black aluminium window frame handles (right handed), similar to existing window handles at the mobile ECD classroom. | B130: no | C130: 6 | D130: R500 | E130: R3,000
A131: Supply and install new 38mm rubber door stop plugged to floor in new toilet cubicles at boys and girls toilets. | B131: no | C131: 8 | D131: R100 | E131: R800
A133: METAL KITCHEN CUPBOARD
A134: SUPPLY AND INSTALL INDUSTRIAL METAL KITCHEN CUPBOARD
A135: Supply and install a 900mm (H) x 1200mm (L) white powder coated industrial steel cupboard with sliding doors and shelf at Feeding Scheme Kitchen. | B135: no | C135: 3 | D135: R2,500 | E135: =C135*D135 -> R7,500
A140: LOCKERS
A141: Supply and install an industrial type steel lockable single locker, 2 louvered doors with standard epoxy powder coated finish. Overall size 1800 height x 300 width x 450mm depth. | B141: no | C141: 15 | D141: 0 | E141: =C141*D141 -> 0
A142: SUB TOTAL | E142: R54,950
A144: METALWORK
A146: SUPPLY AND INSTALL PRESSED STEEL DOORS AND FRAMES
A147: SUPPLY AND INSTALL A NEW ROLLER SHUTTER DOOR
A148: Supply and install a1,2mm Single rebated frames suitable for half brick walls. Door frame 813 x 2125mm high. Location: New toilet cubicles at girls and boys toilets. | B148: no | C148: 8 | D148: R1,200 | E148: =C148*D148 -> R9,600
A150: Remove socket outlets at existing positions at shown on site. | B150: item | C150: 7 | D150: R50 | E150: =D150*C150 -> R350
A152: Supply and install a1,2mm Single rebated frames suitable for one brick walls. Frame for door 813 x 2125mm high. Location: At new water pump room | B152: no | C152: 1 | D152: R1,200 | E152: =C152*D152 -> R1,200
A153: Supply and install a 1.2mm mild steel door - 813 x 2100mm high. Location: At new water pump room. | B153: no | C153: 1 | D153: R1,200 | E153: =C153*D153 -> R1,200
A154: SUPPLY AND INSTALL STEEL HARNESS FOR CISTERN
A155: Supply and fit steel harness over cistern, which is constructed of 50mm x 5mm x 200mm girth mild steel, twice bend, once drilled. Secured to brickwall with 8M coach screw. | B155: no | C155: 14 | D155: R400 | E155: =C155*D155 -> R5,600
A156: SUPPLY AND INSTALL NEW GRILLE GATES
A157: Take down damaged grille gates and store on site. Make good to face of brickwall where grille gates was mounted. Location: classroom no. 2, 3, 4, 5, 10, 11, 12 and feeding scheme kitchen. | B157: no | C157: 8 | D157: R65 | E157: =C157*D157 -> R520
A158: Supply and fit new single leaf grille gates over and in openings as specified. Single gate, 1100mm x 2160mm high, formed of and including 25 x 50 x 2.5mm thick rectangular hollow section outer frame and one 25 x 50 x 2.5mm thick rectangular hollow section horizontal middle rail; gate filled with and including single length vertical 12mm diameter solid bars at approximately 90mm centres, let through holes in middle rails with one end of bars let into holes in top and bottom outer frame; gate fitted with and including three 20mm diameter x 70mm long bullet hinges, one 40 x 65 x 6mm thick padlock plate once holed and twice angle rounded and 300mm long barrel bolt guide pipes welded to outer frame(Padlock elsewhere measured). Location: Educator's toilets x 2; Learner toilets x 2; Classroom no. 29 ,25,26, 24,20,18 and water pumproom. | B158: no | C158: 12 | D158: R3,500 | E158: R42,000
A159: Supply and fit new double leaf grille gates over and in openings as specified. Double gate, 1830mm x 2160mm high, formed of and including 25 x 50 x 2.5mm thick rectangular hollow section outer frame and one 25 x 50 x 2.5mm thick rectangular hollow section horizontal middle rail; gate filled with and including single length vertical 12mm diameter solid bars at approximately 90mm centres, let through holes in middle rails with one end of bars let into holes in top and bottom outer frame; gate fitted with and including three 20mm diameter x 70mm long bullet hinges, one 40 x 65 x 6mm thick padlock plate once holed and twice angle rounded and three 300mm long barrel bolt guide pipes welded to outer frame(Padlock elsewhere measured). Location: Class room no. 29, room no.12 and at hall x 4. | B159: no | C159: 6 | D159: R4,500 | E159: R27,000
A160: Supply and fit new double leaf grille gates over and in openings as specified. Double gate, 1346mm x 2131mm high including with a fixed panel size 1346mm wide x 1034mm high, formed of and including 25 x 50 x 2.5mm thick rectangular hollow section outer frame and one 25 x 50 x 2.5mm thick rectangular hollow section horizontal middle rail; gate filled with and including single length vertical 12mm diameter solid bars at approximately 90mm centres, let through holes in middle rails with one end of bars let into holes in top and bottom outer frame; gate fitted with and including three 20mm diameter x 70mm long bullet hinges, one 40 x 65 x 6mm thick padlock plate once holed and twice angle rounded and three 300mm long barrel bolt guide pipes welded to outer frame(Padlock elsewhere measured). Location: At passage near boys toilets for grade 4 to 6 which will be directed on site. | B160: no | C160: 1 | D160: R4,500 | E160: R4,500
A161: Supply and fit new double leaf grille gates over and in openings as specified. Double gate, 1900mm x 2020mm high including with a fixed panel size 1900mm wide x 480mm high, formed of and including 25 x 50 x 2.5mm thick rectangular hollow section outer frame and one 25 x 50 x 2.5mm thick rectangular hollow section horizontal middle rail; gate filled with and including single length vertical 12mm diameter solid bars at approximately 90mm centres, let through holes in middle rails with one end of bars let into holes in top and bottom outer frame; gate fitted with and including three 20mm diameter x 70mm long bullet hinges, one 40 x 65 x 6mm thick padlock plate once holed and twice angle rounded and three 300mm long barrel bolt guide pipes welded to outer frame(Padlock elsewhere measured). Location: Room no. 12, | B161: no | C161: 1 | D161: R4,500 | E161: R4,500
A162: Supply and fit new double leaf grille gates over and in openings as specified. Double gate, 3295mm x 1814mm high, formed of and including 25 x 50 x 2.5mm thick rectangular hollow section outer frame and one 25 x 50 x 2.5mm thick rectangular hollow section horizontal middle rail; gate filled with and including single length vertical 12mm diameter solid bars at approximately 90mm centres, let through holes in middle rails with one end of bars let into holes in top and bottom outer frame; gate fitted with and including three 20mm diameter x 70mm long bullet hinges, one 40 x 65 x 6mm thick padlock plate once holed and twice angle rounded and three 300mm long barrel bolt guide pipes welded to outer frame(Padlock elsewhere measured). Location: At building block E which will be directed on site. | B162: no | C162: 1 | D162: R5,000 | E162: R5,000
A163: Supply and fit new double leaf grille gates over and in openings as specified. Double gate, 1830mm x 2160mm high, formed of and including 25 x 50 x 2.5mm thick rectangular hollow section outer frame and one 25 x 50 x 2.5mm thick rectangular hollow section horizontal middle rail; gate filled with 3mm wide x 3mm thick expanded metal sheeting (type number 6320G/346A) with hole sizes not exceeding 50 x 25mm and including single length vertical 12mm diameter solid bars at approximately 90mm centres, let through holes in middle rails with one end of bars let into holes in top and bottom outer frame; gate fitted with and including three 20mm diameter x 70mm long bullet hinges, one 40 x 65 x 6mm thick padlock plate once holed and twice angle rounded and three 300mm long barrel bolt guide pipes welded to outer frame(Padlock elsewhere measured). Location: In front of hall. | B163: no | C163: 3 | D163: R7,000 | E163: R21,000
A164: CONSTRUCT A COVERED WALKWAY STEEL STRUCTURE
A165: Construct a 30m long x 2m wide covered walkway steel structure similar to existing using 100mm x 50mm x20mmx 2mm thick lip channel for edge and cross purlins, double 50x50x2mm thick steel post including 2mm thick 200x200mm base plates. Concrete footings for steel post will have a concrete strenght of 25Mpa.Walkways will have a hight of 2.4m and will be covered with 0.58mm thich galvanized IBR roof sheets which are measured elsewhere. | B165: Item | C165: 1 | D165: R45,000 | E165: R45,000
A166: OTHER METALS
A167: ALUMINIUM WINDOWS, DOORS, ETC.
A168: Repair existing aluminium frame door which should open and close freely. Leave door operational on completion. Location: Mobile ECD | B168: no | C168: 1 | D168: R250 | E168: =C168*D168 -> R250
A169: Cut out new window opening to walls of mobile ECD classroom which will be directed on site.Supply and fit new 600mm x 600mm natural aluminium window frame top hung with 4mm thick glazing including black aluminium right handed handle. | B169: no | C169: 3 | D169: R1,000 | E169: =C169*D169 -> R3,000
A170: SUPPLY AND FIT NEW STONEGUARDS TO WINDOWS
A171: Provide, construct and erect over window openings at learner ablution blocks, new stone guards, using material of an approved manufacture. Note: The outer frame is to be constructed of 25 x 25 x 3mm thick angle iron, neatly mitred and securely welded at corners and filled in (including top, bottom and sides of stone-guards where applicable) with 3mm wide x 3mm thick expanded metal sheeting (type number 6320G/346A) with hole sizes not exceeding 50 x 25mm. Each frame is to be strengthened with a 25mm x 5mm mild steel bar and where panel exceeds one (1)m², an additional bar must be securely welded across(top to bottom and side to side) the center of each frame. Each guard is to be securely fitted to wall with not less than 8 x M10mm expanded bolts. All cross sections must be securely welded and neatly finished to an even surface. On completion and prior to painting, neatly clean away excessive welding and tack weld all bolt heads. | B171: m² | C171: 40 | D171: R900 | E171: =C171*D171 -> R36,000
A172: SUB TOTAL | E172: R177,800
A174: SUPPLY AND INSTALL AN INDUSTRIAL ROLLER SHUTTER DOOR
A175: PLASTERING
A176: Take down and remove 8m wide x 1.3m high steel stall urinal at boys toilets and 2m wide x 1.3m high steel stall urinal at the gents educator toilets. Cart away removed stall urinal from site. | B176: m² | C176: 13 | D176: R250 | E176: =D176*C176 -> R3,250
B177: item | C177: 7 | D177: R300 | E177: R2,100
A178: Hack up cracked stoeps and steps infront of classrooms including steps of urinals which will be directed on site and cart away from school. | B178: m² | C178: 100 | D178: R100 | E178: R10,000
A179: Brake up and remove wall tiles at boys and girl toilets and cart away from site. | B179: m² | C179: 100 | D179: R65 | E179: R6,500
A180: One layer 4:1 steel floated cement plaster on brickwork of internal walls in boys and girls toilets. | B180: m² | C180: 100 | D180: R85 | E180: R8,500
A181: Thoroughly keep surfaces free of dust, slush over using clean cement mixed with a plaster key compound and leave to dry before new granolithic screed is introduced. Lay new granolithic screed using 2 parts approved stone chippings, half part sand and one part cement per batch. Cast in panels, finish of flush with surrounding floor screed and neatly push a V-joint between new and old panels.New granolithic topping is to be finished using a steel trowel until a true, even and smooth surface is obtained. | B181: m² | C181: 100 | D181: R100 | E181: R10,000
A182: REPAIRING CRACKS TO PLASTER WALLS AND FLOORS
A183: Create a vee notch in the concrete approximately 10mm wide over the crack using a hammer and chisel or other small power tools and clear all debris, concrete and dust, prime the surface with approved concrete primer and fill the vee notch with epoxy mortar "silka mono op 615HB or similar approved. Location: In classrooms and on stoeps infront of classrooms. | B183: m² | C183: 50 | D183: R180 | E183: =D183*C183 -> R9,000
A185: SUB TOTAL | E185: R47,250
A188: TILING
A189: WALL TILING
A190: 150 X 150 X 3mm White glazed ceramic tiles fixed with adhesive to plaster(plaster elsewhere) and flush pointed with tinted jointing compound. On walls in isolated panels, splashbacks, etc. Location: boys and girls toilets and educator toilets. | B190: m² | C190: 100 | D190: R250 | E190: =D190*C190 -> R25,000
A191: FLOOR TILING
A192: Supply and lay new ceramic floor tiles complete with tile skirting using the same tile around the borders of the rooms specified, 100mm high finished at the top of skirting with an approved tile strip of an approved colour to match new tiles. Location: Principal's office , Secretary's office , staffroom , educators toilets , Learner ablution blocks , Economic classroom no. 29 , Caretaker's room , Canteen room no. 11. | B192: m² | C192: 800 | D192: R250 | E192: =D192*C192 -> R200,000
A194: SUB TOTAL | E194: R225,000
A196: PLUMBING AND DRAINAGE
A197: REMOVALS
A198: Take down and remove damaged double steel sink wash trough at feeding scheme kitchen and cart away from site. | B198: no. | C198: 1 | D198: R65 | E198: =D198*C198 -> R65
A199: Take down and remove rusted cast iron handwash basins with connecting pipes, stoptaps, bottletraps and waste pipes, cart away from site. Location: Learner ablution blocks, Girls and boys toilets at the hall ; Educator's toilets ; Caretaker's room. | B199: no. | C199: 24 | D199: R65 | E199: R1,560
A200: Take down and remove rusted cast iron cisterns with connecting pipes, stoptaps and flushpipes and cart away from site. Location: Learner ablution blocks, Girls and boys toilets at the hall ; Educator's toilets ; Caretaker's room. | B200: no. | C200: 24 | D200: R65 | E200: R1,560
A201: Take down and remove damaged porcelain water closets including pan collor and cart away from site. Location: Learner ablution blocks | B201: no | C201: 6 | D201: R65 | E201: R390
A202: Take down and remove pan collor, flexi pvc 110mm pvc drain pipe including cast iron drain pipe to underground sewer pipe. Location: Boys toilets for grade 4 to 6 (quantity 1) and Mobile ECD (quantity 3) | B202: no | C202: 4 | D202: R100 | E202: R400
A203: Take down and remove all rusted galvanised water pipes and cart away from site. Location: Learner ablution blocks and educators toilets. | B203: m | C203: 30 | D203: R25 | E203: R750
A204: SANITARY PLUMBING
A205: PVC ABOVE GROUND
A206: 50mm diameter pipe | B206: m | C206: 30 | D206: R100 | E206: =D206*C206 -> R3,000
A207: 110 diameter pipe | B207: m | C207: 12 | D207: R120 | E207: =D207*C207 -> R1,440
A208: UPVC PIPE FITTINGS
A209: 50mm Inspection bend | B209: no | C209: 15 | D209: R250 | E209: =D209*C209 -> R3,750
A210: 50mm Inspection junction | B210: no | C210: 15 | D210: R250 | E210: R3,750
A211: 110mm Inspection bend | B211: no | C211: 5 | D211: R250 | E211: R1,000
A212: 110mm Bend with anti siphon horn | B212: no | C212: 1 | D212: R250 | E212: =D212*C212 -> R250
A213: 110mm Pan connector | B213: no | C213: 20 | D213: R250 | E213: R5,000
A214: 50mm x 110mm reducer | B214: no | C214: 6 | D214: R250 | E214: R1,500
A215: 50mm two way vent valve | B215: no | C215: 1 | D215: R250 | E215: R250
A216: RUBBER TRAPS
A217: 32mm Butyl rubber trap including hose clamps | B217: no | C217: 24 | D217: R250 | E217: =D217*C217 -> R6,000
A218: 38mm Butyl rubber trap including hose clamps | B218: no | C218: 9 | D218: R250 | E218: R2,250
A219: WAISTE UNIONS, ETC.
A220: 32mm Basin waste union with backnut, plug, chain and stay | B220: no | C220: 24 | D220: R350 | E220: =D220*C220 -> R8,400
A221: 38mm Urinal waste union | B221: no | C221: 9 | D221: R350 | E221: R3,150
A222: SANITARY FITTINGS
A223: NOTE: All sanitary fittings shall be in strict accordance with PW371 Specification of Materials and Methods to be used.Descriptions of all sanitary fittings shall be deemed to include sealing at junctions with all surfaces and worktops, etc. with an approved silicone joint sealer. “Vaal Potteries” or other approved white vitreous china fittings
A224: 510 x 400mm “Daisy Code 7008” semi-retangular wash hand basin with one tap hole, complete with and including intergrated overflow and chainstay hole, basin bolted to wall with and including two 10mm diameter bolts(Code 844820), with star pillar tap with flunge backnut and raised nose hose. | B224: no | C224: 24 | D224: R3,200 | E224: =D224*C224 -> R76,800
A225: WC suite comprising orchid white vitreous china or similar approved toilet pot. | B225: no | C225: 6 | D225: R1,600 | E225: R9,600
A226: 9 Litre low-level white vitreous china cistern complete with flushing mechanism and flush pipe. | B226: no | C226: 24 | D226: R2,600 | E226: R62,400
A227: 275 x 310 x 565mm ‘Sweatpea Code 705126’ Wall hung bowl urinal with "Cobra" junior flushmaster including 38mm diameter threaded spreader, flushpipe and fittings. | B227: no | C227: 9 | D227: R5,000 | E227: R45,000
A228: Heavy duty double flap plastic seat and lid, fitments, etc. | B228: no | C228: 24 | D228: R500 | E228: R12,000
A229: Supply and fit single trough including fitting and flexitrap. | B229: no | C229: 2 | D229: R2,600 | E229: R5,200
A230: Refit existing handwash basin against brickwall at classroom no. 2. | B230: no | C230: 1 | D230: R250 | E230: R250
... 259 more rows
